[Event "44th Chess Olympiad Open 2022"]
[Site "Chennai"]
[Date "2022.07.30"]
[Round "2.42"]
[White "Salinas Herrera, Pablo"]
[Black "Chavez, Ricardo Ernesto"]
[Result "1-0"]
[WhiteElo "2526"]
[BlackElo "2179"]
[Annotator "TA"]
[PlyCount "89"]
[EventDate "2022.??.??"]
[TimeControl "60"]

{[%evp 11,89,35,50,35,44,39,46,25,47,47,53,41,59,40,44,43,37,32,63,63,102,87,
86,99,119,104,150,148,187,170,199,208,216,202,223,212,210,211,238,204,285,282,
266,269,317,307,390,351,397,294,282,277,280,292,287,284,268,268,387,379,454,
299,277,216,406,394,418,390,410,399,495,494,519,513,675,604,882,798,837,791]} 
1. e4 {[%emt 0:00:03]} g6 {[%emt 0:00:13]} 2. d4 {[%emt 0:00:16]} Bg7 {[%emt 0:
00:00]} 3. Nf3 {[%emt 0:00:05]} d6 {[%emt 0:00:06]} 4. Be2 {[%emt 0:00:04]} Nf6
{[%emt 0:00:52]} 5. Nc3 {[%emt 0:00:08]} O-O {[%emt 0:01:48]} 6. O-O {[%emt 0:
00:00]} e6 {[%emt 0:00:16]} 7. Re1 {[%emt 0:08:15] B08: Pirc Defence:
Classical System.} a6 {[%emt 0:03:09]} 8. Bf4 {[%emt 0:07:21]} Nc6 {[%emt 0:00:
00]} 9. Bf1 {[%emt 0:09:51] White is slightly better.} h6 {[%emt 0:04:41]} 10.
h3 {[%emt 0:12:59]} Ne7 {[%emt 0:05:54]} 11. Qd2 {[%emt 0:04:17]} Kh7 {[%emt 0:
00:00]} 12. Rad1 {[%emt 0:03:24]} b6 {[%emt 0:04:40] [#]} 13. Bg3 $146 {
[%emt 0:11:05]} ({Predecessor:} 13. Bh2 Bb7 14. Qe2 Qc8 15. Bf4 Rd8 16. g3 b5
17. a3 c5 18. dxc5 Qxc5 19. Bg2 e5 20. Bc1 Rac8 21. Nd2 Qc7 22. Nb3 d5 23. exd5
Nfxd5 24. Nxd5 Bxd5 {½-½ (24) Braun,G (2325)-Jakobsen,O (2376) Halle 2004})
13... Bb7 {[%emt 0:05:58]} 14. Qe2 {[%emt 0:01:09]} Re8 {[%emt 0:04:17]} 15. e5
{[%emt 0:00:08]} Nfg8 {[%emt 0:04:45] White leaves nothing to chance now.} 16.
Ne4 {[%emt 0:01:25]} Bxe4 {[%emt 0:00:52]} 17. Qxe4 {[%emt 0:00:05]} d5 {
[%emt 0:00:07]} 18. Qf4 {[%emt 0:00:41] White is more active.} b5 {[%emt 0:00:
00]} (18... c5 $142) 19. Bd3 {[%emt 0:02:29]} ({Inferior is} 19. Qxf7 Nf5 20.
Bd3 Re7 $17) 19... Nf5 {[%emt 0:14:07] [#]} 20. Bh2 $1 {[%emt 0:00:05]} Qd7 {
[%emt 0:05:58]} 21. g4 {[%emt 0:07:42]} Nfe7 {[%emt 0:00:11]} 22. Bg3 {[%emt 0:
00:00]} (22. Qxf7 $2 Rf8 23. Bxg6+ Kh8 24. Qxf8 (24. Ng5 $2 hxg5 25. c3 Rxf7
$19) 24... Bxf8 $19) 22... Rac8 {[%emt 0:05:20]} 23. h4 {[%emt 0:04:15]} (23.
Qxf7 $2 Rf8 24. Bxg6+ Kh8 25. Qxf8 (25. Ng5 $2 hxg5 26. Kg2 Rxf7 $19) 25...
Bxf8 $19) 23... Kh8 {[%emt 0:04:03]} 24. Kg2 {[%emt 0:00:23]} ({Don't go for} 
24. Qxf7 $2 Rf8 25. Qxf8 Rxf8 $19) 24... Rf8 {[%emt 0:01:11]} 25. Qe3 {[%emt 0:
00:00]} Rce8 {[%emt 0:10:08]} 26. Rh1 {[%emt 0:00:21]} c5 {[%emt 0:04:23]} 27.
dxc5 {[%emt 0:00:13]} Nc6 {[%emt 0:00:05]} 28. c3 {[%emt 0:00:22]} f5 {[%emt 0:
00:00]} 29. exf6 {[%emt 0:00:05]} Nxf6 {[%emt 0:00:22]} 30. Bxg6 {[%emt 0:00:
00]} Nxg4 {[%emt 0:00:16]} 31. Qe2 {[%emt 0:00:03]} e5 {[%emt 0:02:21]} 32.
Bxe8 {[%emt 0:00:57] Really sharp!} Rxe8 {[%emt 0:00:03]} 33. h5 {[%emt 0:00:
00]} e4 {[%emt 0:01:20]} 34. Nh4 {[%emt 0:00:06]} Nce5 {[%emt 0:02:27]} (34...
Kh7 {was necessary.} 35. a4 bxa4) 35. Ng6+ $18 {[%emt 0:02:44]} Kh7 {[%emt 0:
00:00]} 36. Rh4 {[%emt 0:00:15]} Nf3 {[%emt 0:00:24]} 37. Rh3 {[%emt 0:01:28]}
d4 $2 {[%emt 0:00:20]} (37... Nf6 {was worth a try.} 38. Nh4 Ng5) 38. cxd4 {
[%emt 0:02:42]} Nxd4 {[%emt 0:00:02] [#]} 39. Rxd4 $1 {[%emt 0:01:41]} Bxd4 {
[%emt 0:00:45] [#]} 40. Qxe4 $3 {[%emt 0:00:46]} Rxe4 {[%emt 0:01:41]} (40...
Ne3+ $2 41. fxe3 Rxe4 42. Nf8+ Kh8 43. Nxd7 $18) (40... Nf6 41. Nf8+) 41. Nf8+
{[%emt 0:30:06] White is clearly winning.} Kg8 {[%emt 0:01:49] ( -> .. .Qd5)}
42. Nxd7 {[%emt 0:00:00]} Kf7 {[%emt 0:05:51]} 43. c6 {[%emt 0:00:00][%cal
Yc5c6,Yc6c7]} Bxb2 {[%emt 0:09:32]} 44. c7 {[%emt 0:00:00]} Rc4 {[%emt 0:00:29]
} 45. Nb6 {[%emt 0:00:00] Weighted Error Value: White=0.15 (very precise) /
Black=0.34} 1-0

[Event "44th Chess Olympiad Open 2022"]
[Site "Chennai"]
[Date "2022.07.30"]
[Round "2.42"]
[White "Perez Gormaz, Matias"]
[Black "Arias, Lemnys A."]
[Result "1-0"]
[WhiteElo "2387"]
[BlackElo "2258"]
[Annotator "TA"]
[PlyCount "89"]
[EventDate "2022.??.??"]
[TimeControl "60"]

{[%evp 19,89,13,22,12,24,20,18,16,37,49,41,44,45,36,37,37,57,52,69,72,66,49,
125,111,120,116,115,108,127,112,152,135,147,147,200,195,206,208,190,202,217,
208,203,170,170,169,246,243,242,216,216,176,189,172,252,247,237,235,280,268,
301,272,286,251,261,269,593,230,229,173,286,245]} 1. e4 {[%emt 0:00:13]} c5 {
[%emt 0:01:38]} 2. Nf3 {[%emt 0:00:10]} d6 {[%emt 0:00:12]} 3. d4 {[%emt 0:00:
00]} cxd4 {[%emt 0:01:11]} 4. Nxd4 {[%emt 0:00:09]} Nf6 {[%emt 0:00:04]} 5. Nc3
{[%emt 0:00:06]} a6 {[%emt 0:00:07]} 6. Be3 {[%emt 0:01:32]} e5 {[%emt 0:01:36]
} 7. Nf3 {[%emt 0:00:21]} Be7 {[%emt 0:01:24]} 8. Bc4 {[%emt 0:00:13]} Qc7 {
[%emt 0:00:08]} 9. Bb3 {[%emt 0:00:12]} Be6 {[%emt 0:00:27]} 10. O-O {[%emt 0:
00:00]} O-O {[%emt 0:13:25]} 11. Nh4 {[%emt 0:01:24] B90: Sicilian Najdorf:
Unusual White 6th moves, 6 Be3 Ng4 and 6 Be3 e5.} g6 {[%emt 0:13:17]} 12. Bh6 {
[%emt 0:00:38]} Re8 {[%emt 0:01:47]} 13. Qd2 {[%emt 0:00:10][%cal Yh4f5] The
position is equal.} Nc6 {[%emt 0:00:43] [#]} 14. Nf5 $1 {[%emt 0:02:30]
Prevents Nd4.} Bxf5 {[%emt 0:02:52]} ({Much less strong is} 14... Bxb3 15. axb3
Qd8 16. Nxe7+ Qxe7 17. f3 $16) 15. exf5 {[%emt 0:00:06]} Nd4 {[%emt 0:00:03]}
16. fxg6 {[%emt 0:00:06]} hxg6 {[%emt 0:00:04] [#]} 17. Bg5 $146 {[%emt 0:00:
00] Black needs to defend precisely. This bishop pair is nice.} ({Predecessor:
} 17. f4 Qc5 18. Kh1 Nxb3 19. axb3 exf4 20. Qxf4 Qe5 21. Qf3 Qh5 22. Qxh5 Nxh5
{1-0 (92) Kosintseva,T (2524)-Cmilyte,V (2520) Ankara 2012}) 17... Qc6 {
[%emt 0:03:56]} 18. Bxf6 {[%emt 0:23:46][%cal Yd2h6]} Bxf6 {[%emt 0:00:00]} 19.
Bd5 {[%emt 0:04:43]} Qb6 {[%emt 0:03:21]} 20. Ne4 {[%emt 0:04:26]} Bg7 {
[%emt 0:00:24] Against Qh6. White leaves nothing to chance now.} ({Better is} 
20... Be7 $14) 21. c3 {[%emt 0:12:02]} Ne6 {[%emt 0:02:44]} 22. g3 {[%emt 0:00:
56] Prevents Nf4.} Rad8 {[%emt 0:00:17]} 23. a4 {[%emt 0:06:09]} (23. Rfd1 {
is more complex.} Nc7 24. a4 Nxd5 25. a5) 23... a5 {[%emt 0:03:24]} 24. Ra3 {
[%emt 0:18:56]} Qc7 {[%emt 0:00:54]} 25. Rd1 {[%emt 0:01:34] White is more
active.} b6 {[%emt 0:07:31]} 26. h4 {[%emt 0:00:18][%cal Yh4h5]} Qe7 {[%emt 0:
02:17]} (26... Kf8 $16 27. c4 Re7) 27. Qe3 $18 {[%emt 0:06:09]} Nc5 {[%emt 0:
04:15]} 28. Ng5 {[%emt 0:04:15]} Rf8 {[%emt 0:00:21]} 29. b4 {[%emt 0:00:00]}
Nd7 {[%emt 0:01:47]} 30. Qe4 {[%emt 0:00:06] [#] And now Qxg6 would win.} Qf6 {
[%emt 0:01:39]} 31. Rd3 {[%emt 0:04:43][%cal Yd1d3,Yd3f3,Yf3f5]} Qf5 {[%emt 0:
00:18]} 32. Rf3 {[%emt 0:00:09]} Nf6 {[%emt 0:05:18]} (32... Qxe4 $142 33. Nxe4
Kh8) 33. Rxf5 {[%emt 0:03:14]} Nxe4 {[%emt 0:00:15]} 34. Rxf7 {[%emt 0:02:37]}
({Less strong is} 34. Bxf7+ Rxf7 35. Rxf7 (35. Nxf7 Rd7 $15) 35... Nxg5 36.
Rxg7+ Kxg7 $14) 34... Nxg5 {[%emt 0:00:47]} 35. Rxf8+ {[%emt 0:00:05]} Kxf8 {
[%emt 0:00:05]} 36. hxg5 {[%emt 0:00:03] Endgame KRB-KRB} Rc8 {[%emt 0:00:49]}
(36... Re8 {is a better defense.} 37. Bc6 Rc8) 37. bxa5 {[%emt 0:00:12]} bxa5 {
[%emt 0:00:07]} 38. c4 {[%emt 0:00:04]} Ke8 {[%emt 0:04:48]} 39. Rb3 {[%emt 0:
00:19] Threatens to win with Rb7.} Bf8 {[%emt 0:00:30]} 40. Rb5 {[%emt 0:02:32]
} Be7 {[%emt 0:01:49]} 41. Rxa5 {[%emt 0:30:32]} Bxg5 {[%emt 0:30:24]} 42. Ra7
{[%emt 0:01:11] aiming for a5.} Bd8 {[%emt 0:00:14]} (42... Rc5 43. a5 Kd8) 43.
Rg7 $2 {[%emt 0:00:00]} (43. a5) 43... g5 {[%emt 0:00:00]} 44. Rg6 {[%emt 0:00:
00]} Be7 {[%emt 0:00:00]} (44... Rc5 $142 45. Rxd6 Ke7) 45. Rg8+ {[%emt 0:00:
00] Weighted Error Value: White=0.19 (very precise) /Black=0.32} 1-0

[Event "44th Chess Olympiad Open 2022"]
[Site "Chennai"]
[Date "2022.07.30"]
[Round "2.42"]
[White "Giron, Jorge Ernesto"]
[Black "Morovic Fernandez, Ivan"]
[Result "1/2-1/2"]
[WhiteElo "2288"]
[BlackElo "2489"]
[Annotator "ChessBase"]
[PlyCount "106"]
[EventDate "2022.??.??"]
[TimeControl "60"]

1. e4 {[%emt 0:00:29]} e5 {[%emt 0:00:19]} 2. Nf3 {[%emt 0:00:09]} Nc6 {
[%emt 0:00:09]} 3. Bb5 {[%emt 0:00:07]} a6 {[%emt 0:00:13]} 4. Ba4 {[%emt 0:00:
00]} Nf6 {[%emt 0:00:38]} 5. O-O {[%emt 0:01:15]} Be7 {[%emt 0:01:22]} 6. d3 {
[%emt 0:00:13]} b5 {[%emt 0:00:30]} 7. Bb3 {[%emt 0:00:07]} d6 {[%emt 0:00:10]}
8. a3 {[%emt 0:00:11]} O-O {[%emt 0:01:59]} 9. Nc3 {[%emt 0:00:09]} Rb8 {
[%emt 0:04:02]} 10. Ba2 {[%emt 0:11:56]} Qe8 {[%emt 0:10:34]} 11. h3 {[%emt 0:
00:00]} Bd8 {[%emt 0:05:39]} 12. Re1 {[%emt 0:01:51]} Ne7 {[%emt 0:12:30]} 13.
b4 {[%emt 0:12:58]} Ng6 {[%emt 0:03:00]} 14. Ne2 {[%emt 0:09:34]} Be6 {[%emt 0:
00:00]} 15. Ng3 {[%emt 0:03:29]} Nd7 {[%emt 0:05:49]} 16. Be3 {[%emt 0:04:09]}
Bxa2 {[%emt 0:05:16]} 17. Rxa2 {[%emt 0:00:11]} Ne7 {[%emt 0:00:34]} 18. c4 {
[%emt 0:20:21]} f5 {[%emt 0:02:19]} 19. exf5 {[%emt 0:00:28]} Nxf5 {[%emt 0:00:
00]} 20. Nxf5 {[%emt 0:00:55]} Rxf5 {[%emt 0:00:06]} 21. cxb5 {[%emt 0:08:43]}
axb5 {[%emt 0:00:33]} 22. Qb3+ {[%emt 0:00:11]} Qf7 {[%emt 0:11:23]} 23. Qxf7+
{[%emt 0:04:32]} Rxf7 {[%emt 0:02:06]} 24. Rc1 {[%emt 0:00:23]} Nf6 {[%emt 0:
00:00]} 25. Ng5 {[%emt 0:01:14]} Rd7 {[%emt 0:02:20]} 26. Ne4 {[%emt 0:08:14]}
Nd5 {[%emt 0:03:33]} 27. Nc3 {[%emt 0:00:28]} Nxe3 {[%emt 0:05:39]} 28. fxe3 {
[%emt 0:00:06]} d5 {[%emt 0:00:04]} 29. Kf2 {[%emt 0:06:42]} Bg5 {[%emt 0:00:
00]} 30. Ke2 {[%emt 0:00:15]} Rb6 {[%emt 0:08:14]} 31. Nd1 {[%emt 0:01:52]} Bd8
{[%emt 0:01:49]} 32. Rac2 {[%emt 0:01:50]} Ra6 {[%emt 0:00:27]} 33. Rc5 {
[%emt 0:00:32]} Rxa3 {[%emt 0:01:02]} 34. R1c2 {[%emt 0:00:04]} Rb3 {[%emt 0:
00:00]} 35. Rxb5 {[%emt 0:00:03]} Be7 {[%emt 0:00:20]} 36. Rb7 {[%emt 0:00:42]}
Bd6 {[%emt 0:00:41]} 37. Rb2 {[%emt 0:00:55]} Rxb2+ {[%emt 0:00:34]} 38. Nxb2 {
[%emt 0:00:03]} Kf7 {[%emt 0:00:03]} 39. e4 {[%emt 0:01:38]} dxe4 {[%emt 0:00:
00]} 40. dxe4 {[%emt 0:00:05]} Ke6 {[%emt 0:00:22]} 41. Nd3 {[%emt 0:04:02]}
Rd8 {[%emt 0:11:38]} 42. Ra7 {[%emt 0:01:18]} Rb8 {[%emt 0:02:45]} 43. Ra4 {
[%emt 0:00:12]} h5 {[%emt 0:04:01]} 44. Kd2 {[%emt 0:09:41]} Rf8 {[%emt 0:00:
00]} 45. Kc3 {[%emt 0:07:32]} Rf1 {[%emt 0:00:59]} 46. Kc4 {[%emt 0:00:28]} Rg1
{[%emt 0:02:05]} 47. Ra2 {[%emt 0:00:04]} g5 {[%emt 0:01:20]} 48. Rf2 {[%emt 0:
00:00]} g4 {[%emt 0:00:49]} 49. hxg4 {[%emt 0:02:21]} hxg4 {[%emt 0:00:02]} 50.
Kc3 {[%emt 0:02:19]} Kd7 {[%emt 0:02:26]} 51. Kc4 {[%emt 0:03:26]} Ke6 {
[%emt 0:01:51]} 52. Kc3 {[%emt 0:00:06]} Kd7 {[%emt 0:02:39]} 53. Kc4 {[%emt 0:
00:00]} Ke7 {[%emt 0:00:27]} 1/2-1/2

[Event "44th Chess Olympiad Open 2022"]
[Site "Chennai"]
[Date "2022.07.30"]
[Round "2.42"]
[White "Burgos Figueroa, Carlos E."]
[Black "Lopez Silva, Hugo"]
[Result "0-1"]
[WhiteElo "2164"]
[BlackElo "2403"]
[Annotator "TA"]
[PlyCount "70"]
[EventDate "2022.??.??"]
[TimeControl "60"]

{[%evp 16,70,-7,-16,0,-15,-9,-16,18,17,27,8,7,1,0,-32,-34,-54,-57,-58,-39,-37,
-34,-46,-25,-78,-29,-58,-76,-66,-64,-155,-154,-163,-74,-93,-89,-80,-92,-49,-23,
-99,-98,-108,-102,-701,-688,-681,-658,-709,-707,-690,-689,-715,-706,-656,-641]
} 1. Nf3 {[%emt 0:00:03]} Nf6 {[%emt 0:00:59]} 2. g3 {[%emt 0:00:06]} c5 {
[%emt 0:00:31]} 3. c4 {[%emt 0:00:20]} g6 {[%emt 0:00:45]} 4. b3 {[%emt 0:00:
00]} Bg7 {[%emt 0:00:18]} 5. Bb2 {[%emt 0:00:07]} d6 {[%emt 0:01:01]} 6. Bg2 {
[%emt 0:00:06]} e5 {[%emt 0:00:24]} 7. d3 {[%emt 0:00:05]} Nc6 {[%emt 0:00:48]}
8. Nbd2 {[%emt 0:01:06]} O-O {[%emt 0:01:40]} 9. O-O {[%emt 0:00:08]} h6 {
[%emt 0:05:18] A05: Réti Opening: 1 Nf3 Nf6.} 10. a3 {[%emt 0:01:46] [#]} Rb8
$146 {[%emt 0:14:11]} ({Predecessor:} 10... Be6 11. e3 Qd7 12. Re1 Bh3 13. Bh1
Nh7 14. b4 cxb4 15. axb4 Nxb4 16. Qb3 Nc6 17. Ne4 {0-1 (50) Arabidze,M (2437)
-Bodnaruk,A (2423) Tornelo INT 2020}) 11. b4 {[%emt 0:09:30]} b6 {[%emt 0:00:
00] The position is equal.} 12. Ne1 {[%emt 0:04:35]} Bb7 {[%emt 0:04:35]} 13.
Nc2 {[%emt 0:01:59]} Nd4 {[%emt 0:04:16]} (13... Qd7 {is interesting.} 14. b5
Nd4 15. Bxb7 Rxb7 16. e3 Nxc2 17. Qxc2 Qh3) 14. Bxb7 {[%emt 0:00:36]} (14. b5 {
seems wilder.} Qd7 15. Bxb7 Rxb7 16. e3) 14... Rxb7 {[%emt 0:00:03][%cal Yb8b7,
Yb7e7,Ye7d7,Yd7d3]} 15. Bxd4 {[%emt 0:02:14]} exd4 {[%emt 0:01:10]} 16. Rb1 {
[%emt 0:00:06]} Re7 {[%emt 0:06:33]} 17. Re1 {[%emt 0:01:50]} d5 {[%emt 0:04:
31]} 18. bxc5 {[%emt 0:01:41]} bxc5 {[%emt 0:00:02]} 19. Rb5 {[%emt 0:04:39]}
Qc8 {[%emt 0:00:09]} 20. e4 {[%emt 0:05:47]} (20. e3 $11 {keeps the balance.})
20... dxe3 {[%emt 0:02:49]} (20... dxe4 $17 {Hoping for .. .a6.} 21. Nxe4 Nxe4
22. Rxe4 Rxe4 23. dxe4 Re8) 21. Rxe3 {[%emt 0:01:14]} Rd7 {[%emt 0:06:19]
aiming for ...dxc4.} 22. Qe2 {[%emt 0:01:02]} Rfd8 {[%emt 0:00:00] White must
now prevent ...dxc4.} 23. Nb3 {[%emt 0:05:16]} (23. Nf3 $1 $15) 23... Bf8 $17 {
[%emt 0:07:21]} 24. Qf3 {[%emt 0:02:23]} Kg7 {[%emt 0:00:21]} (24... dxc4 $19 {
is more deadly.} 25. dxc4 Ng4 $1) 25. Re1 {[%emt 0:04:48]} dxc4 {[%emt 0:11:08]
} 26. dxc4 {[%emt 0:00:15]} Rd3 {[%emt 0:00:03]} 27. Ne3 {[%emt 0:00:29]} a6 {
[%emt 0:02:16]} (27... Ng4 $5) 28. Rb6 {[%emt 0:00:06] [#]} (28. Rb7 $11) 28...
Nd7 $1 $36 {[%emt 0:00:49] Black is really pushing.} 29. Rc6 {[%emt 0:05:00]}
Qa8 {[%emt 0:02:00]} 30. Nc1 {[%emt 0:00:52] Loses the game.} (30. Na5 $17 Kh8
31. Qe4 (31. Qxf7 $2 Ne5 $19)) 30... Rd6 $19 {[%emt 0:00:56] Black is clearly
winning.} 31. Rxd6 {[%emt 0:00:00]} Qxf3 {[%emt 0:00:06]} 32. Rd5 {[%emt 0:00:
03]} Qf6 {[%emt 0:05:26]} 33. Red1 {[%emt 0:02:02]} Qc6 {[%emt 0:00:06]} 34.
Ne2 {[%emt 0:03:03]} Be7 {[%emt 0:00:10]} 35. Nf4 {[%emt 0:02:06]} Qc8 {
[%emt 0:01:30] Weighted Error Value: White=0.46/Black=0.11 (very precise)} 0-1

[Event "44th Chess Olympiad Open 2022"]
[Site "Chennai"]
[Date "2022.07.30"]
[Round "2.43"]
[White "Gretarsson, Hjorvar Steinn"]
[Black "Bagheri, Amir"]
[Result "0-1"]
[WhiteElo "2563"]
[BlackElo "2375"]
[Annotator "TA"]
[PlyCount "72"]
[EventDate "2022.??.??"]
[TimeControl "60"]

{[%evp 11,72,31,41,45,50,37,39,10,22,0,0,-12,-7,-14,-14,-52,-47,-72,-60,-63,
-45,-60,-56,-79,-50,-68,1,0,0,0,150,176,216,222,184,222,329,307,614,497,948,
948,944,881,1024,874,739,297,255,99,135,0,0,0,0,-699,0,0,0,0,0,0,0]} 1. e4 {
[%emt 0:00:06]} c6 {[%emt 0:00:04]} 2. d4 {[%emt 0:00:13]} d5 {[%emt 0:00:05]}
3. e5 {[%emt 0:00:15]} Bf5 {[%emt 0:00:12]} 4. Nf3 {[%emt 0:00:16]} e6 {
[%emt 0:00:06]} 5. Be2 {[%emt 0:00:10]} Nd7 {[%emt 0:05:09]} 6. O-O {[%emt 0:
00:00]} Bg6 {[%emt 0:07:18]} 7. a4 {[%emt 0:01:58][%cal Ya2a4,Ya4a5] B12:
Caro-Kann: Advance Variation.} Nh6 {[%emt 0:04:51]} 8. a5 {[%emt 0:02:31]} Nf5
{[%emt 0:04:05]} 9. c4 {[%emt 0:01:07] White is slightly better.} dxc4 {
[%emt 0:13:58] [#]} 10. Nc3 $146 {[%emt 0:05:14]} ({Predecessor:} 10. Bxc4 b6
11. axb6 Nxb6 12. Bd3 Be7 13. Nc3 O-O 14. g4 Nh4 15. Nxh4 Bxd3 16. Qxd3 Bxh4 {
½-½ (42) Karjakin,S (2785)-Sjugirov,S (2635) Moscow 2012}) 10... b5 {[%emt 0:
00:00] Against Qa4} 11. axb6 $1 {[%emt 0:19:10]} Nxb6 {[%emt 0:00:33]} 12. g4 {
[%emt 0:10:37]} Ne7 {[%emt 0:03:58]} 13. Nh4 {[%emt 0:08:22]} Ned5 {[%emt 0:00:
00]} 14. Nxg6 {[%emt 0:06:00]} hxg6 {[%emt 0:00:11]} 15. f4 {[%emt 0:00:38]} f5
{[%emt 0:13:53]} 16. exf6 {[%emt 0:05:20]} gxf6 {[%emt 0:00:21]} 17. Ne4 {
[%emt 0:02:45]} Qc7 {[%emt 0:03:08][%cal Yg6g5]} 18. Qc2 {[%emt 0:05:41]} g5 {
[%emt 0:06:42]} ({Black should play} 18... Kf7 $15) 19. Bxc4 {[%emt 0:04:20]}
Nxc4 {[%emt 0:11:27]} (19... gxf4 20. Nxf6+ $1 Nxf6 21. Bxf4 $16 (21. Bxe6 Nfd5
$15)) 20. Qxc4 {[%emt 0:00:16]} Bd6 {[%emt 0:01:55]} (20... Be7 $11) 21. Ra6
$16 {[%emt 0:02:21]} Kd7 {[%emt 0:02:42][%cal Rg5f4]} (21... gxf4 $2 22. Rxc6
Qg7 23. Nxd6+ $18) 22. Re1 $1 {[%emt 0:02:41][%cal Ye4f6] Black must now
prevent Nxf6+!} (22. fxg5 $6 Bxh2+ 23. Kf2 fxg5 $16) 22... Be7 {[%emt 0:01:03]}
23. Nc3 {[%emt 0:08:24] Bd2 is the strong threat.} Bd6 {[%emt 0:04:30]} (23...
Nb4 $142) 24. Rxe6 $1 $18 {[%emt 0:02:10]} ({But not} 24. fxg5 $2 Bxh2+ 25. Kf1
Bg3 26. Nxd5 exd5 $19) (24. Qe2 Rae8 $11) 24... Nxc3 {[%emt 0:01:42]} (24...
Nb6 25. Qa2 (25. Rxb6 axb6 26. Rxf6 Rae8 $14) 25... Bxf4 26. Rxf6 Kd8) 25. bxc3
{[%emt 0:00:58] And now Ba3 would win.} Rae8 {[%emt 0:00:19]} (25... Rab8 $142
26. Rxf6 Rb1 27. Qe6+ Kd8 28. Qxd6+ Qxd6 29. Rxd6+ Kc8 30. Raxc6+ Kb7) 26. d5 {
[%emt 0:01:38][%cal Ra6c6,Yd4d5,Yd5e6]} Rxe6 {[%emt 0:00:05]} 27. dxe6+ {
[%emt 0:00:07]} Ke7 {[%emt 0:00:03]} 28. Rxc6 {[%emt 0:01:39]} Qa5 {[%emt 0:00:
04]} 29. Qd3 {[%emt 0:03:35]} (29. fxg5 $142 f5 30. Rxd6 $1 Kxd6 31. Qd4+ Kxe6
32. Qxh8 Qc5+ 33. Kg2 Qd5+ 34. Kg3) 29... Rd8 {[%emt 0:00:58] [#]} 30. Qh7+ $2
{[%emt 0:01:13]} (30. Be3 $1 $18 {and White stays clearly on top. Hoping for
Ra6.} Qa1+ 31. Kg2 Qa2+ 32. Bf2 Qxe6 33. h3 (33. Qh7+ Kf8 $16)) 30... Kxe6 $16
{[%emt 0:00:07][%cal Ye7e6,Ye6e5,Ye5d5]} 31. f5+ {[%emt 0:01:30]} ({White
should try} 31. Qe4+ $16 Kd7 32. Rc4) 31... Ke5 $1 $11 {[%emt 0:00:35]
Strongly threatening ...Bc5+.} 32. Qf7 {[%emt 0:01:53][%csl Gf5][%cal Rf7e6]}
Qd5 {[%emt 0:00:28] Inhibits Qe6+. Really sharp!} 33. Qxd5+ {[%emt 0:00:21]}
Kxd5 {[%emt 0:00:02]} 34. Ra6 {[%emt 0:00:27] The position is equal.} Bc5+ {
[%emt 0:01:01]} 35. Kg2 {[%emt 0:00:00]} Bb6 {[%emt 0:00:05]} 36. Ba3 {[%emt 0:
01:28] aiming for Be7.} Re8 {[%emt 0:01:16] Prevents Be7. Weighted Error Value:
White=0.40/ Black=0.44. Loss on time!?} 0-1

[Event "44th Chess Olympiad Open 2022"]
[Site "Chennai"]
[Date "2022.07.30"]
[Round "2.43"]
[White "Kjartansson, Gudmundur"]
[Black "Ribbegren, Karl Johan"]
[Result "1-0"]
[WhiteElo "2448"]
[BlackElo "2198"]
[Annotator "TA"]
[PlyCount "59"]
[EventDate "2022.??.??"]
[TimeControl "60"]

{[%evp 17,59,16,55,48,48,50,50,62,34,31,50,36,37,35,26,36,48,49,54,70,102,59,
236,229,242,229,228,232,282,290,560,569,529,557,695,682,771,744,733,716,29993,
29994,29994,29995]} 1. d4 {[%emt 0:00:04]} Nf6 {[%emt 0:00:13]} 2. c4 {[%emt 0:
00:00]} c5 {[%emt 0:00:29]} 3. d5 {[%emt 0:00:10]} e6 {[%emt 0:00:40]} 4. Nc3 {
[%emt 0:00:35]} exd5 {[%emt 0:00:37]} 5. cxd5 {[%emt 0:00:06]} d6 {[%emt 0:00:
00]} 6. e4 {[%emt 0:00:28]} g6 {[%emt 0:00:45]} 7. f4 {[%emt 0:00:13]} Bg7 {
[%emt 0:00:55]} 8. Bb5+ {[%emt 0:00:26]} Nfd7 {[%emt 0:00:32]} 9. a4 {[%emt 0:
00:00]} Qh4+ {[%emt 0:01:16]} 10. g3 {[%emt 0:00:14] A67: Modern Benoni:
Taimanov Variation.} Qd8 {[%emt 0:00:24]} 11. Nf3 {[%emt 0:00:23]} O-O {
[%emt 0:00:35]} 12. O-O {[%emt 0:00:29] White is slightly better.} Na6 {
[%emt 0:05:46] outshines the older 12...a6.} 13. Re1 {[%emt 0:09:40]} Nc7 {
[%emt 0:06:14] [#]} 14. e5 $146 {[%emt 0:02:29] [#] aiming for e6.} ({
Predecessor:} 14. Bd3 Nf6 15. Kg2 b6 16. e5 dxe5 17. d6 e4 18. Nxe4 Nce8 19.
Nxf6+ Bxf6 20. Be4 {0-1 (41) Uskov,A (2403)-Pavlov,M (2401) Sochi 2022}) 14...
Nxb5 {[%emt 0:07:48]} 15. Nxb5 {[%emt 0:00:28]} dxe5 {[%emt 0:02:59]} 16. fxe5
{[%emt 0:00:28][%cal Yf4e5,Ye5e6]} a6 {[%emt 0:00:54]} 17. Nc3 {[%emt 0:03:48]
Black must now prevent e6.} Re8 {[%emt 0:05:16]} 18. Bf4 {[%emt 0:02:46]} h6 {
[%emt 0:13:03]} 19. h4 {[%emt 0:07:57] Prevents g5. White is more active.} Qa5
$2 {[%emt 0:03:39] Loses the game.} (19... Nf8 $14) 20. Qd2 $18 {[%emt 0:04:36]
Hoping for e6.} c4 {[%emt 0:05:23] [#]} 21. e6 $1 {[%emt 0:08:03]} fxe6 {
[%emt 0:01:49]} 22. Bxh6 {[%emt 0:00:00]} ({Not} 22. Rxe6 Rxe6 23. dxe6 Qb6+
24. Kh2 Nf6 $14) 22... Qc5+ {[%emt 0:03:27]} 23. Kg2 {[%emt 0:02:13]} Nf6 $2 {
[%emt 0:01:47]} (23... Qf8) 24. Bxg7 {[%emt 0:01:23]} Kxg7 {[%emt 0:00:16]} 25.
Qg5 {[%emt 0:01:03]} exd5 {[%emt 0:04:45]} 26. Rxe8 {[%emt 0:05:55]} Nxe8 {
[%emt 0:01:44]} 27. Ne5 {[%emt 0:06:20] Pair of Knights!} Bf5 {[%emt 0:02:13]}
28. Rf1 {[%emt 0:00:41]} Bd3 {[%emt 0:05:35]} 29. Rf7+ {[%emt 0:01:59]} Kg8 {
[%emt 0:00:53]} 30. Qh6 {[%emt 0:00:10] Weighted Error Value: White=0.03 
(flawless) /Black=0.77} 1-0